fUSD/lending_fUSD_20250308
["ID","MTS","AMOUNT","RATE_DAILY","PERIOD"]
[355624135,1741403441564,-500.0,9.793e-05,2]
[355624136,1741403441574,-500.0,9.793e-05,2]
[355624137,1741403441583,-500.0,9.793e-05,2]
[355624138,1741403441594,-500.0,9.793e-05,2]
[355624139,1741403441604,-979.2,9.793e-05,2]
[355624140,1741403441613,-500.0,9.793e-05,2]
[355624141,1741403441622,-500.0,9.793e-05,2]
[355624142,1741403441632,-1342.42,9.793e-05,2]
[355624143,1741403441642,-500.0,9.793e-05,2]
[355624144,1741403441651,-500.0,9.793e-05,2]
[355624145,1741403441660,-500.0,9.793e-05,2]
[355624146,1741403441669,-500.0,9.793e-05,2]
[355624147,1741403441678,-500.0,9.793e-05,2]
[355624148,1741403441688,-864.49,9.793e-05,2]
[355624149,1741403441697,-500.0,9.793e-05,2]
[355624150,1741403441707,-867.23,9.793e-05,2]
[355624151,1741403441717,-500.0,9.793e-05,2]
[355624152,1741403441727,-500.0,9.793e-05,2]
[355624153,1741403441736,-500.0,9.793e-05,2]
[355624154,1741403441745,-500.0,9.793e-05,2]
[355624155,1741403441755,-309.08231056,9.793e-05,2]
[355624169,1741403442766,-190.91768944,9.793e-05,2]
[355624170,1741403442775,-383.70981056,9.793e-05,2]
[355624171,1741403442802,-116.29018944,9.793e-05,2]
[355624172,1741403442811,-500.0,9.793e-05,2]
[355624173,1741403442821,-500.0,9.793e-05,2]
[355624174,1741403442831,-503.55731791,9.793e-05,2]
[355624175,1741403442840,-505.76537024,9.793e-05,2]
[355624176,1741403442850,-647.04,9.793e-05,2]
[355624177,1741403442859,-500.0,9.793e-05,2]
[355624178,1741403442868,-500.0,9.793e-05,2]
[355624179,1741403442878,-500.0,9.793e-05,2]
[355624180,1741403442888,-1420.45,9.793e-05,2]
[355624181,1741403442897,-500.0,9.793e-05,2]
[355624182,1741403442907,-500.0,9.793e-05,2]
[355624183,1741403442916,-500.0,9.793e-05,2]
[355624184,1741403442926,-1308.26,9.793e-05,2]
[355624185,1741403442936,-329.15905035,9.793e-05,2]
[355624186,1741403442954,-2341.17094965,9.793e-05,2]
[355624187,1741403442963,-500.0,9.793e-05,2]
[355624188,1741403442972,-268.95038133,9.793e-05,2]
[355624189,1741403442981,-500.0,9.793e-05,2]
[355624190,1741403442991,-500.0,9.793e-05,2]
[355624191,1741403443000,-500.0,9.793e-05,2]
[355624192,1741403443010,-727.28,9.793e-05,2]
[355624193,1741403443019,-509.95,9.793e-05,2]
[355624194,1741403443028,-1365.55,9.793e-05,2]
[355624195,1741403443038,-500.0,9.793e-05,2]
[355624196,1741403443048,-585.96634568,9.793e-05,2]
[355624197,1741403443058,-500.0,9.793e-05,2]
[355624198,1741403443067,-500.0,9.793e-05,2]
[355624199,1741403443077,-1702.03,9.793e-05,2]
[355624200,1741403443087,-500.0,9.793e-05,2]
[355624201,1741403443096,-528.04046068,9.793e-05,2]
[355624202,1741403443106,-500.0,9.793e-05,2]
[355624203,1741403443115,-500.0,9.793e-05,2]
[355624204,1741403443125,-500.0,9.793e-05,2]
[355624205,1741403443134,-500.0,9.793e-05,2]
[355624206,1741403443146,-2412.33,9.793e-05,2]
[355624207,1741403443155,-500.0,9.793e-05,2]
[355624208,1741403443164,-2778.77,9.793e-05,2]
[355624209,1741403443173,-573.29290989,9.793e-05,2]
[355624210,1741403443183,-500.0,9.793e-05,2]
[355624211,1741403443193,-641.53798762,9.793e-05,2]
[355624212,1741403443203,-500.0,9.793e-05,2]
[355624213,1741403443213,-1249.26,9.793e-05,2]
[355624214,1741403443222,-500.0,9.793e-05,2]
[355624215,1741403443235,-1359.81,9.793e-05,2]
[355624216,1741403443245,-324.15046217,9.793e-05,2]
[355624217,1741403443254,-500.0,9.793e-05,2]
[355624218,1741403443264,-3258.28,9.793e-05,2]
[355624219,1741403443274,-500.0,9.793e-05,2]
[355624220,1741403443284,-500.0,9.793e-05,2]
[355624221,1741403443293,-561.83545498,9.793e-05,2]
[355624222,1741403443303,-500.0,9.793e-05,2]
[355624223,1741403443312,-3261.89,9.793e-05,2]
[355624224,1741403443322,-500.0,9.793e-05,2]
[355624225,1741403443331,-729.33,9.793e-05,2]
[355624226,1741403443341,-500.0,9.793e-05,2]
[355624227,1741403443350,-500.0,9.793e-05,2]
[355624228,1741403443359,-500.0,9.793e-05,2]
[355624229,1741403443368,-500.0,9.793e-05,2]
[355624230,1741403443378,-2090.82,9.793e-05,2]
[355624231,1741403443388,-745.82,9.793e-05,2]
[355624232,1741403443399,-500.0,9.793e-05,2]
[355624233,1741403443409,-500.0,9.793e-05,2]
[355624234,1741403443419,-500.0,9.793e-05,2]
[355624235,1741403443429,-500.0,9.793e-05,2]
[355624236,1741403443438,-500.0,9.793e-05,2]
[355624237,1741403443447,-986.83,9.793e-05,2]
[355624238,1741403443457,-352.39151364,9.793e-05,2]
[355624239,1741403443466,-500.0,9.793e-05,2]
[355624240,1741403443475,-500.0,9.793e-05,2]
[355624241,1741403443484,-500.0,9.793e-05,2]
[355624242,1741403443493,-3020.39,9.793e-05,2]
[355624243,1741403443503,-500.0,9.793e-05,2]
[355624244,1741403443513,-512.07417489,9.793e-05,2]
[355624245,1741403443523,-500.0,9.793e-05,2]
[355624247,1741403443533,-1189.57,9.793e-05,2]
[355624249,1741403443543,-1721.81,9.793e-05,2]
[355624251,1741403443552,-500.0,9.793e-05,2]
[355624252,1741403443562,-500.0,9.793e-05,2]
[355624253,1741403443571,-500.0,9.793e-05,2]
[355624254,1741403443580,-500.0,9.793e-05,2]
[355624255,1741403443590,-2772.25,9.793e-05,2]
[355624256,1741403443599,-3099.84,9.793e-05,2]
[355624257,1741403443609,-966.45,9.793e-05,2]
[355624258,1741403443618,-500.0,9.793e-05,2]
[355624259,1741403443627,-500.0,9.793e-05,2]
[355624261,1741403443637,-500.0,9.793e-05,2]
[355624263,1741403443646,-521.36563207,9.793e-05,2]
[355624264,1741403443656,-1124.13,9.793e-05,2]
[355624265,1741403443665,-500.0,9.793e-05,2]
[355624266,1741403443674,-500.0,9.793e-05,2]
[355624267,1741403443683,-511.95762675,9.793e-05,2]
[355624269,1741403443692,-1632.05,9.793e-05,2]
[355624271,1741403443701,-500.0,9.793e-05,2]
[355624272,1741403443710,-1018.57,9.793e-05,2]
[355624274,1741403443719,-500.0,9.793e-05,2]
[355624276,1741403443729,-500.0,9.793e-05,2]
[355624277,1741403443738,-500.0,9.793e-05,2]
[355624278,1741403443748,-948.94,9.793e-05,2]
[355624279,1741403443758,-500.0,9.793e-05,2]
[355624280,1741403443768,-1308.43,9.793e-05,2]
[355624281,1741403443777,-500.0,9.793e-05,2]
[355624282,1741403443787,-500.0,9.793e-05,2]
[355624283,1741403443796,-1255.12,9.793e-05,2]
[355624284,1741403443805,-500.0,9.793e-05,2]
[355624285,1741403443814,-519.68498732,9.793e-05,2]
[355624286,1741403443823,-502.43355342,9.793e-05,2]
[355624287,1741403443833,-525.38667221,9.793e-05,2]
[355624288,1741403443843,-500.0,9.793e-05,2]
[355624289,1741403443852,-3262.52,9.793e-05,2]
[355624290,1741403443861,-500.0,9.793e-05,2]
[355624291,1741403443871,-943.11,9.793e-05,2]
[355624292,1741403443881,-500.0,9.793e-05,2]
[355624293,1741403443890,-500.0,9.793e-05,2]
[355624294,1741403443900,-500.0,9.793e-05,2]
[355624295,1741403443910,-500.0,9.793e-05,2]
[355624296,1741403443919,-261.07442533,9.793e-05,2]
[355624297,1741403443928,-500.0,9.793e-05,2]
[355624298,1741403443938,-500.0,9.793e-05,2]
[355624299,1741403443948,-500.0,9.793e-05,2]
[355624300,1741403443957,-500.0,9.793e-05,2]
[355624301,1741403443966,-500.0,9.793e-05,2]
[355624302,1741403443976,-500.0,9.793e-05,2]
[355624303,1741403443985,-500.0,9.793e-05,2]
[355624304,1741403443995,-500.0,9.793e-05,2]
[355624305,1741403444004,-1715.65,9.793e-05,2]
[355624306,1741403444014,-7547.57,9.793e-05,2]
[355624307,1741403444023,-500.0,9.793e-05,2]
[355624308,1741403444034,-500.0,9.793e-05,2]
[355624309,1741403444044,-4963.3,9.793e-05,2]
[355624310,1741403444053,-500.0,9.793e-05,2]
[355624311,1741403444062,-500.0,9.793e-05,2]
[355624312,1741403444071,-49873.86,9.793e-05,2]
[355624313,1741403444265,-2767.56,9.793e-05,2]
[355624314,1741403444275,-511.40240356,9.793e-05,2]
[355624315,1741403444284,-13041.61,9.793e-05,2]
[355624316,1741403444293,-500.0,9.793e-05,2]
[355624317,1741403444302,-2504.2,9.793e-05,2]
[355624318,1741403444312,-500.0,9.793e-05,2]
[355624319,1741403444322,-500.0,9.793e-05,2]
[355624320,1741403444332,-1563.59,9.793e-05,2]
[355624321,1741403444342,-500.0,9.793e-05,2]
[355624322,1741403444351,-500.0,9.793e-05,2]
[355624323,1741403444363,-5326.63,9.793e-05,2]
[355624324,1741403444376,-513.19379018,9.793e-05,2]
[355624325,1741403444385,-500.0,9.793e-05,2]
[355624326,1741403444395,-500.0,9.793e-05,2]
[355624327,1741403444404,-2310.42,9.793e-05,2]
[355624328,1741403444413,-5740.5,9.793e-05,2]
[355624329,1741403444429,-500.0,9.793e-05,2]
[355624330,1741403444439,-977.04,9.793e-05,2]
[355624331,1741403444450,-1801.13,9.793e-05,2]
[355624332,1741403444460,-1211.28,9.793e-05,2]
[355624333,1741403444470,-500.0,9.793e-05,2]
[355624334,1741403444480,-792.61,9.793e-05,2]
[355624335,1741403444490,-1897.89,9.793e-05,2]
[355624336,1741403444500,-500.0,9.793e-05,2]
[355624337,1741403444510,-1963.45,9.793e-05,2]
[355624338,1741403444520,-500.0,9.793e-05,2]
[355624339,1741403444530,-500.0,9.793e-05,2]
[355624340,1741403444540,-500.0,9.793e-05,2]
[355624341,1741403444549,-4826.09,9.793e-05,2]
[355624342,1741403444559,-517.17304903,9.793e-05,2]
[355624343,1741403444568,-4546.94,9.793e-05,2]
[355624344,1741403444577,-500.0,9.793e-05,2]
[355624345,1741403444587,-1080.97,9.793e-05,2]
[355624346,1741403444598,-961.77,9.793e-05,2]
[355624347,1741403444607,-419.10496162,9.793e-05,2]
[355624348,1741403444615,-500.0,9.793e-05,2]
[355624349,1741403444625,-4407.85,9.793e-05,2]
[355624350,1741403444634,-9428.08,9.793e-05,2]
[355624351,1741403444643,-300.19352967,9.793e-05,2]
[355624352,1741403444652,-654.88,9.793e-05,2]
[355624353,1741403444661,-500.0,9.793e-05,2]
[355624354,1741403444670,-1878.94,9.793e-05,2]
[355624355,1741403444680,-500.0,9.793e-05,2]
[355624356,1741403444689,-500.0,9.793e-05,2]
[355624357,1741403444699,-500.0,9.793e-05,2]
[355624358,1741403444708,-7386.03,9.793e-05,2]
[355624359,1741403444717,-3211.99,9.793e-05,2]
[355624360,1741403444726,-2002.55,9.793e-05,2]
[355624361,1741403444735,-874.11,9.793e-05,2]
[355624362,1741403444744,-502.38167734,9.793e-05,2]
[355624363,1741403444753,-1174.61,9.793e-05,2]
[355624364,1741403444762,-614.32482119,9.793e-05,2]
[355624365,1741403444770,-501.04246508,9.793e-05,2]
[355624366,1741403444780,-3446.4,9.793e-05,2]
[355624367,1741403444789,-9951.42,9.793e-05,2]
[355624368,1741403444798,-500.0,9.793e-05,2]
[355624369,1741403444807,-524.68298406,9.793e-05,2]
[355624370,1741403444816,-503.22037523,9.793e-05,2]
[355624371,1741403444825,-5815.93,9.793e-05,2]
[355624372,1741403444835,-500.0,9.793e-05,2]
[355624373,1741403444844,-500.0,9.793e-05,2]
[355624374,1741403444853,-500.0,9.793e-05,2]
[355624375,1741403444862,-1485.11,9.793e-05,2]
[355624376,1741403444871,-255.53063072,9.793e-05,2]
[355624377,1741403444880,-500.0,9.793e-05,2]
[355624378,1741403444889,-500.0,9.793e-05,2]
[355624379,1741403444899,-500.0,9.793e-05,2]
[355624380,1741403444908,-500.0,9.793e-05,2]
[355624381,1741403444917,-500.0,9.793e-05,2]
[355624382,1741403444927,-1316.75,9.793e-05,2]
[355624383,1741403444936,-500.0,9.793e-05,2]
[355624384,1741403444945,-500.0,9.793e-05,2]
[355624385,1741403444955,-8083.6,9.793e-05,2]
[355624386,1741403444964,-500.0,9.793e-05,2]
[355624387,1741403444974,-386.80715069,9.793e-05,2]
[355624388,1741403444983,-500.0,9.793e-05,2]
[355624389,1741403444993,-500.0,9.793e-05,2]
[355624390,1741403445002,-500.0,9.793e-05,2]
[355624391,1741403445012,-500.0,9.793e-05,2]
[355624392,1741403445022,-500.0,9.793e-05,2]
[355624393,1741403445031,-521.94940781,9.793e-05,2]
[355624394,1741403445041,-500.0,9.793e-05,2]
[355624395,1741403445056,-11679.77997161,9.793e-05,2]
[355624396,1741403445088,-259.72867443,9.793e-05,2]
[355624401,1741403445489,-3105.36135396,9.793e-05,2]
[355624402,1741403445499,-179.07864604,9.793e-05,2]
[355624403,1741403445510,-320.92135396,9.793e-05,2]
[355624404,1741403445519,-500.0,9.793e-05,2]
[355624405,1741403445529,-500.0,9.793e-05,2]
[355624406,1741403445538,-500.0,9.793e-05,2]
[355624407,1741403445547,-500.0,9.793e-05,2]
[355624408,1741403445556,-415.98403412,9.793e-05,2]
[355624409,1741403445568,-84.01596588,9.793e-05,2]
[355624410,1741403445577,-500.0,9.793e-05,2]
[355624411,1741403445587,-500.0,9.793e-05,2]
[355624412,1741403445597,-445.98403412,9.793e-05,2]
[355624413,1741403446824,-54.01596588,9.793e-05,2]
[355624414,1741403446833,-500.0,9.793e-05,2]
[355624415,1741403446843,-500.0,9.793e-05,2]
[355624416,1741403446853,-1305.77596227,9.793e-05,2]
[355624417,1741403446865,-5771.46403773,9.793e-05,2]
[355624418,1741403446874,-607.06,9.793e-05,2]
[355624419,1741403446884,-500.0,9.793e-05,2]
[355624420,1741403446895,-1130.25,9.793e-05,2]
[355624421,1741403446905,-3271.17,9.793e-05,2]
[355624422,1741403446915,-2598.16,9.793e-05,2]
[355624423,1741403446925,-500.0,9.793e-05,2]
[355624424,1741403446935,-500.0,9.793e-05,2]
[355624425,1741403446945,-506.0877929,9.793e-05,2]
[355624426,1741403446954,-500.0,9.793e-05,2]
[355624427,1741403446963,-500.0,9.793e-05,2]
[355624428,1741403446973,-500.0,9.793e-05,2]
[355624429,1741403446983,-467.65180311,9.793e-05,2]
[355624430,1741403446992,-3263.3,9.793e-05,2]
[355624431,1741403447002,-500.0,9.793e-05,2]
[355624432,1741403447011,-500.0,9.793e-05,2]
[355624433,1741403447020,-2984.82,9.793e-05,2]
[355624434,1741403447030,-3481.79,9.793e-05,2]
[355624435,1741403447039,-3564.69,9.793e-05,2]
[355624436,1741403447049,-1479.71,9.793e-05,2]
[355624437,1741403447059,-1715.3,9.793e-05,2]
[355624438,1741403447068,-500.0,9.793e-05,2]
[355624439,1741403447078,-174.35864854,9.793e-05,2]
[355624440,1741403447087,-1432.82,9.793e-05,2]
[355624441,1741403447096,-1602.33,9.793e-05,2]
[355624442,1741403447106,-500.0,9.793e-05,2]
[355624443,1741403447115,-509.06300568,9.793e-05,2]
[355624444,1741403447125,-500.0,9.793e-05,2]
[355624445,1741403447135,-500.0,9.793e-05,2]
[355624446,1741403447145,-299.20388014,9.793e-05,2]
[355624447,1741403447158,-500.0,9.793e-05,2]
[355624448,1741403447167,-2123.88,9.793e-05,2]
[355624449,1741403447177,-9675.47,9.793e-05,2]
[355624450,1741403447188,-500.0,9.793e-05,2]
[355624451,1741403447198,-1151.29134866,9.793e-05,2]
[355624452,1741403447218,-401.0,9.793e-05,2]
[355624453,1741403447230,-1596.68865134,9.793e-05,2]
[355624454,1741403447239,-636.78,9.793e-05,2]
[355624455,1741403447248,-4144.67,9.793e-05,2]
[355624456,1741403447258,-500.0,9.793e-05,2]
[355624457,1741403447267,-338.50403178,9.793e-05,2]
[355624458,1741403447531,-161.49596822,9.793e-05,2]
[355624459,1741403447541,-652.26012229,9.793e-05,2]
[355624461,1741403660573,-300.0,9.794e-05,7]
[355624462,1741403662538,-200.0,9.794e-05,7]
[355624464,1741404020869,-300.0,9.793e-05,7]
[355624465,1741404024364,-200.0,9.793e-05,7]
[355624469,1741404342714,-200.0,8.19e-05,2]
[355624474,1741404466529,6039.0,0.00013,30]
[355624530,1741404631806,-500.0,8.189e-05,2]
[355624531,1741404631816,-568.14738849,8.189e-05,2]
[355624532,1741404631825,-300.0,8.189e-05,2]
[355624534,1741404631835,-50780.28606591,8.19e-05,2]
[355624535,1741404631846,-12102.56158091,8.19e-05,2]
[355624536,1741404632238,-3726.0,8.19e-05,2]
[355624538,1741404637698,-2048.1896,8.19e-05,2]
[355624539,1741404637709,-974.16207443,8.19e-05,2]
[355624540,1741404637720,-574.64045459,8.19e-05,2]
[355624541,1741404637758,-801.25066833,8.19e-05,2]
[355624542,1741404637815,-300.32,8.19e-05,2]
[355624543,1741404637877,-673.45006247,8.19e-05,2]
[355624544,1741404637933,-1054.27225137,8.19e-05,2]
[355624720,1741404639779,-424317.89549591,8.19e-05,2]
[355624732,1741404639888,-2991.1802949,8.19e-05,2]
[355624747,1741404640035,-4225.96418798,8.19e-05,2]
[355624756,1741404640114,-200194.75455993,8.19e-05,2]
[355624758,1741404640123,-3844.87,8.219e-05,2]
[355624760,1741404640133,-500.0,8.219e-05,2]
[355624762,1741404640143,-3088.32,8.219e-05,2]
[355624764,1741404640152,-3670.24,8.219e-05,2]
[355624765,1741404640162,-2777.4,8.219e-05,2]
[355624767,1741404640171,-500.0,8.219e-05,2]
[355624769,1741404640181,-2348.4,8.219e-05,2]
[355624771,1741404640191,-1529.86,8.219e-05,2]
[355624773,1741404640200,-4101.97,8.219e-05,2]
[355624775,1741404640211,-5866.31,8.219e-05,2]
[355624778,1741404640221,-500.0,8.219e-05,2]
[355624779,1741404640230,-2734.7,8.219e-05,2]
[355624781,1741404640239,-5085.97,8.219e-05,2]
[355624783,1741404640248,-5460.17,8.219e-05,2]
[355624785,1741404640258,-1668.99,8.219e-05,2]
[355624787,1741404640267,-3005.71,8.219e-05,2]
[355624789,1741404640277,-1897.85,8.219e-05,2]
[355624791,1741404640286,-2943.2,8.219e-05,2]
[355624793,1741404640296,-8667.98,8.219e-05,2]
[355624795,1741404640305,-4540.17,8.219e-05,2]
[355624797,1741404640315,-2160.08,8.219e-05,2]
[355624799,1741404640324,-1630.91,8.219e-05,2]
[355624801,1741404640334,-508.99572363,8.219e-05,2]
[355624803,1741404640343,-3272.29,8.219e-05,2]
[355624805,1741404640352,-500.0,8.219e-05,2]
[355624807,1741404640361,-654.42,8.219e-05,2]
[355624809,1741404640371,-1095.19,8.219e-05,2]
[355624811,1741404640380,-2123.34,8.219e-05,2]
[355624813,1741404640390,-500.0,8.219e-05,2]
[355624815,1741404640399,-26031.86623733,8.219e-05,2]
[355624817,1741404640411,-4041.73376267,8.219e-05,2]
[355624819,1741404640420,-2636.02,8.219e-05,2]
[355624821,1741404640430,-907.27,8.219e-05,2]
[355624824,1741404640441,-500.0,8.219e-05,2]
[355624825,1741404640452,-526.51965914,8.219e-05,2]
[355624827,1741404640462,-500.0,8.219e-05,2]
[355624830,1741404640471,-500.0,8.219e-05,2]
[355624831,1741404640482,-2447.8,8.219e-05,2]
[355624833,1741404640491,-1267.52,8.219e-05,2]
[355624835,1741404640501,-3844.87,8.493e-05,2]
[355624837,1741404640516,-500.0,8.493e-05,2]
[355624840,1741404640526,-3088.32,8.493e-05,2]
[355624841,1741404640535,-3670.24,8.493e-05,2]
[355624843,1741404640545,-2777.4,8.493e-05,2]
[355624845,1741404640554,-500.0,8.493e-05,2]
[355624847,1741404640563,-2348.4,8.493e-05,2]
[355624849,1741404640573,-1529.86,8.493e-05,2]
[355624851,1741404640582,-4101.97,8.493e-05,2]
[355624853,1741404640591,-4488.86849238,8.493e-05,2]
[355624856,1741404640615,-1377.44150762,8.493e-05,2]
[355624858,1741404640624,-500.0,8.493e-05,2]
[355624860,1741404640633,-309.55849234,8.493e-05,2]
[355624868,1741404640703,-546.87040516,8.493e-05,2]
[355624947,1741404644134,-1259.85,8.219e-05,2]
[355624948,1741404644144,-3076.81,8.219e-05,2]
[355624949,1741404644154,-1921.03,8.219e-05,2]
[355624950,1741404644164,-1878.2711025,8.493e-05,2]
[355624951,1741404644174,-5085.97,8.493e-05,2]
[355624952,1741404644183,-5460.17,8.493e-05,2]
[355624953,1741404644192,-1668.99,8.493e-05,2]
[355624954,1741404644203,-3005.71,8.493e-05,2]
[355624955,1741404644212,-1897.85,8.493e-05,2]
[355624956,1741404644223,-2943.2,8.493e-05,2]
[355624957,1741404644232,-8667.98,8.493e-05,2]
[355624958,1741404644242,-4540.17,8.493e-05,2]
[355624959,1741404644251,-2160.08,8.493e-05,2]
[355624960,1741404644260,-1630.91,8.493e-05,2]
[355624961,1741404644270,-3272.29,8.493e-05,2]
[355624962,1741404644279,-500.0,8.493e-05,2]
[355624963,1741404644288,-654.42,8.493e-05,2]
[355624964,1741404644298,-1095.19,8.493e-05,2]
[355624965,1741404644307,-2123.34,8.493e-05,2]
[355624966,1741404644317,-500.0,8.493e-05,2]
[355624967,1741404644326,-28035.13542685,8.493e-05,2]
[355624969,1741404645782,-500.0,8.219e-05,2]
[355624970,1741404645793,-283.45079787,8.493e-05,2]
[355624971,1741404645889,-533.59496,8.493e-05,2]
[355624972,1741404645950,-1221.41881528,8.493e-05,2]
[355624973,1741404645960,-1165.06455041,8.493e-05,2]
[355624974,1741404645974,-859.3436,8.493e-05,2]
[355624975,1741404645986,-611.61184959,8.493e-05,2]
[355624976,1741404645996,-907.27,8.493e-05,2]
[355624977,1741404646006,-500.0,8.493e-05,2]
[355624978,1741404646015,-500.0,8.493e-05,2]
[355624979,1741404646027,-500.0,8.493e-05,2]
[355624980,1741404646041,-1045.94815041,8.493e-05,2]
[355624985,1741404910578,-150.0,8.218e-05,2]
[355624986,1741404910603,-50.0,8.219e-05,2]
[355624987,1741404911298,-200.0,8.219e-05,2]
[355624994,1741405110135,770.652,8.055e-05,2]
[355625005,1741405649288,500.0,8.219e-05,7]
[355625006,1741405649525,500.0,8.493e-05,7]
[355625007,1741405649769,500.0,8.767e-05,7]
[355625014,1741405831936,-1211.5608,8.192e-05,2]
[355625015,1741405831949,-437.3067437,8.2e-05,2]
[355625016,1741405831959,-2983.02666725,8.209e-05,2]
[355625017,1741405831971,-296.06898983,8.209e-05,2]
[355625018,1741405831982,-718.78087629,8.209e-05,2]
[355625019,1741405831993,-956.30091699,8.209e-05,2]
[355625020,1741405832004,-125.03989888,8.209e-05,2]
[355625021,1741405832014,-300.0,8.217e-05,2]
[355625022,1741405832023,-150.06468377,8.218e-05,2]
[355625023,1741405832060,-349.93531623,8.218e-05,2]
[355625024,1741405832071,-247.70317194,8.218e-05,2]
[355625025,1741405832081,-357.62803089,8.218e-05,2]
[355625026,1741405832092,-322.26793109,8.218e-05,2]
[355625027,1741405832115,-4256.50338705,8.218e-05,2]
[355625028,1741405832124,-222.783975,8.219e-05,2]
[355625029,1741405832135,-199.265519,8.219e-05,2]
[355625030,1741405832147,-500.0,8.219e-05,2]
[355625031,1741405832158,-613.20598837,8.219e-05,2]
[355625032,1741405832168,-500.0,8.219e-05,2]
[355625033,1741405832178,-500.0,8.219e-05,2]
[355625034,1741405832187,-500.0,8.219e-05,2]
[355625035,1741405832198,-500.0,8.219e-05,2]
[355625036,1741405832207,-1160.84,8.219e-05,2]
[355625037,1741405832216,-522.80087394,8.219e-05,2]
[355625038,1741405832225,-500.0,8.219e-05,2]
[355625039,1741405832234,-500.0,8.219e-05,2]
[355625040,1741405832243,-500.0,8.219e-05,2]
[355625041,1741405832252,-500.0,8.219e-05,2]
[355625042,1741405832262,-926.18,8.219e-05,2]
[355625043,1741405832271,-500.0,8.219e-05,2]
[355625044,1741405832280,-1077.29,8.219e-05,2]
[355625045,1741405832289,-500.0,8.219e-05,2]
[355625046,1741405832298,-518.79756134,8.219e-05,2]
[355625047,1741405832308,-500.0,8.219e-05,2]
[355625048,1741405832317,-930.67,8.219e-05,2]
[355625049,1741405832328,-500.0,8.219e-05,2]
[355625050,1741405832337,-500.0,8.219e-05,2]
[355625051,1741405832347,-500.0,8.219e-05,2]
[355625052,1741405832357,-500.0,8.219e-05,2]
[355625053,1741405832367,-156.92041804,8.219e-05,2]
[355625054,1741405832381,-22.70374804,8.219e-05,2]
[355625055,1741405832391,-500.0,8.219e-05,2]
[355625056,1741405832401,-335.3674514,8.219e-05,2]
[355625057,1741405832439,-164.6325486,8.219e-05,2]
[355625058,1741405832450,-366.4210484,8.219e-05,2]
[355625059,1741405832462,-133.5789516,8.219e-05,2]
[355625060,1741405832471,-500.0,8.219e-05,2]
[355625061,1741405832480,-500.0,8.219e-05,2]
[355625063,1741405832490,-500.0,8.219e-05,2]
[355625064,1741405832499,-500.0,8.219e-05,2]
[355625065,1741405832508,-500.0,8.219e-05,2]
[355625066,1741405832518,-516.70781572,8.219e-05,2]
[355625067,1741405832527,-419.35308939,8.219e-05,2]
[355625070,1741405832565,-971.16691061,8.219e-05,2]
[355625071,1741405832574,-500.0,8.219e-05,2]
[355625072,1741405832583,-500.0,8.219e-05,2]
[355625073,1741405832594,-62.23261639,8.219e-05,2]
[355625074,1741405832606,-437.76738361,8.219e-05,2]
[355625075,1741405832615,-500.0,8.219e-05,2]
[355625076,1741405832624,-496.47875597,8.219e-05,2]
[355625077,1741405832649,-3.52124403,8.219e-05,2]
[355625078,1741405832658,-1181.64,8.219e-05,2]
[355625080,1741405832668,-500.0,8.219e-05,2]
[355625082,1741405832678,-962.23,8.219e-05,2]
[355625083,1741405832687,-500.0,8.219e-05,2]
[355625084,1741405832698,-500.0,8.219e-05,2]
[355625085,1741405832707,-500.0,8.219e-05,2]
[355625086,1741405832717,-500.0,8.219e-05,2]
[355625087,1741405832726,-500.0,8.219e-05,2]
[355625088,1741405832736,-500.0,8.219e-05,2]
[355625089,1741405832746,-500.0,8.219e-05,2]
[355625090,1741405832757,-500.0,8.219e-05,2]
[355625091,1741405832767,-500.0,8.219e-05,2]
[355625092,1741405832776,-500.0,8.219e-05,2]
[355625093,1741405832786,-1146.5,8.219e-05,2]
[355625094,1741405832795,-500.0,8.219e-05,2]
[355625095,1741405832804,-1103.99,8.219e-05,2]
[355625096,1741405832813,-500.0,8.219e-05,2]
[355625097,1741405832823,-500.0,8.219e-05,2]
[355625098,1741405832832,-508.52004109,8.219e-05,2]
[355625099,1741405832843,-1058.73,8.219e-05,2]
[355625100,1741405832854,-500.0,8.219e-05,2]
[355625101,1741405832863,-500.0,8.219e-05,2]
[355625102,1741405832873,-500.0,8.219e-05,2]
[355625103,1741405832882,-500.0,8.219e-05,2]